fUSD/lending_fUSD_20250618
["ID","MTS","AMOUNT","RATE_DAILY","PERIOD"]
[366433013,1750253452219,-3891.14914199,0.00016439,2]
[366433014,1750253452230,-3891.14914199,0.00016439,2]
[366433015,1750253452242,-3891.14914199,0.00016439,2]
[366433016,1750253452253,-3891.14914199,0.00016439,2]
[366433017,1750253452264,-3891.14914199,0.00016439,2]
[366433018,1750253452277,-3891.14914199,0.00016439,2]
[366433019,1750253452287,-3891.14914199,0.00016439,2]
[366433020,1750253452298,-6495.13980334,0.00016439,2]
[366433021,1750253452308,-6495.13980334,0.00016439,2]
[366433022,1750253452319,-6495.13980334,0.00016439,2]
[366433023,1750253452329,-6495.13980334,0.00016439,2]
[366433024,1750253452339,-6495.13980334,0.00016439,2]
[366433025,1750253452349,-6495.13980334,0.00016439,2]
[366433026,1750253452358,-6495.13980334,0.00016439,2]
[366433027,1750253452370,-6495.13980334,0.00016439,2]
[366433028,1750253452382,-6495.13980334,0.00016439,2]
[366433029,1750253452394,-6495.13980334,0.00016439,2]
[366433030,1750253452405,-6495.13980334,0.00016439,2]
[366433031,1750253452415,-6495.13980334,0.00016439,2]
[366433032,1750253452425,-6495.13980334,0.00016439,2]
[366433033,1750253452436,-6495.13980334,0.00016439,2]
[366433034,1750253452446,-6495.13980334,0.00016439,2]
[366433035,1750253452456,-6495.13980334,0.00016439,2]
[366433036,1750253452466,-6495.13980334,0.00016439,2]
[366433037,1750253452478,-6495.13980334,0.00016439,2]
[366433038,1750253452488,-6495.13980334,0.00016439,2]
[366433039,1750253452498,-6495.13980334,0.00016439,2]
[366433040,1750253452508,-6495.13980334,0.00016439,2]
[366433041,1750253452519,-6495.13980334,0.00016439,2]
[366433042,1750253452529,-6495.13980334,0.00016439,2]
[366433043,1750253452538,-6495.13980334,0.00016439,2]
[366433044,1750253452548,-6495.13980334,0.00016439,2]
[366433045,1750253452558,-6495.13980334,0.00016439,2]
[366433046,1750253452568,-6495.13980334,0.00016439,2]
[366433047,1750253452578,-6495.13980334,0.00016439,2]
[366433048,1750253452588,-6495.13980334,0.00016439,2]
[366433049,1750253452597,-6495.13980334,0.00016439,2]
[366433050,1750253452607,-463.56215192,0.00016439,2]
[366433051,1750253452618,-5552.25177284,0.00016445,2]
[366433052,1750253452628,-2338.31327949,0.00016446,2]
[366433053,1750253452638,-300.0,0.00016451,2]
[366433054,1750253452648,-652.12867436,0.00016452,2]
[366433055,1750253452658,-150.0,0.00016465,2]
[366433056,1750253452669,-150.0,0.00016465,2]
[366433057,1750253452679,-150.0,0.00016465,2]
[366433058,1750253452689,-500.0,0.00016465,2]
[366433059,1750253452698,-500.0,0.00016465,2]
[366433060,1750253452709,-258.94409193,0.00016465,2]
[366433061,1750253452719,-257.31173317,0.00016465,2]
[366433062,1750253452728,-150.0,0.00016465,2]
[366433063,1750253452738,-150.0,0.00016465,2]
[366433064,1750253452749,-259.80274753,0.00016465,2]
[366433065,1750253452759,-203.84543322,0.00016465,2]
[366433066,1750253452770,-500.0,0.00016465,2]
[366433067,1750253452780,-500.0,0.00016473,2]
[366433068,1750253452790,-500.0,0.00016473,2]
[366433069,1750253452801,-535.97923939,0.00016473,2]
[366433070,1750253452817,-500.0,0.00016473,2]
[366433071,1750253452827,-163.15375829,0.00016473,2]
[366433072,1750253452837,-500.0,0.00016473,2]
[366433073,1750253452847,-160.10644752,0.00016473,2]
[366433074,1750253452857,-160.10125592,0.00016473,2]
[366433075,1750253452866,-500.0,0.00016473,2]
[366433076,1750253452877,-500.0,0.00016473,2]
[366433077,1750253452887,-500.0,0.00016473,2]
[366433078,1750253452897,-160.10190178,0.00016473,2]
[366433079,1750253452907,-500.0,0.00016473,2]
[366433080,1750253452916,-500.0,0.00016473,2]
[366433081,1750253452926,-500.0,0.00016473,2]
[366433082,1750253452936,-500.0,0.00016473,2]
[366433083,1750253452946,-500.0,0.00016473,2]
[366433084,1750253452956,-500.46754569,0.00016473,2]
[366433085,1750253452965,-1000.0,0.00016479,2]
[366433086,1750253452975,-838.69,0.0001648,2]
[366433087,1750253452985,-150.0,0.00016481,2]
[366433088,1750253452995,-150.0,0.00016481,2]
[366433089,1750253453005,-151.0,0.00016484,2]
[366433090,1750253453279,-151.932172,0.00016484,2]
[366433091,1750253453345,-151.400087,0.00016484,2]
[366433092,1750253453355,-150.0,0.00016493,2]
[366433093,1750253453366,-206.17533536,0.00016493,2]
[366433094,1750253453377,-205.83489303,0.00016493,2]
[366433095,1750253453387,-500.0,0.00016493,2]
[366433096,1750253453397,-306.06207231,0.00016493,2]
[366433097,1750253453407,-150.0,0.00016493,2]
[366433098,1750253453417,-594.68021467,0.00016493,2]
[366433099,1750253453427,-5552.25177284,0.00016498,2]
[366433100,1750253453437,-690.17,0.00016499,2]
[366433101,1750253453447,-22245.11,0.000165,2]
[366433102,1750253453458,-300.0,0.000165,3]
[366433103,1750253453468,-200.0,0.000165,2]
[366433104,1750253453479,-301.01169448,0.000165,2]
[366433105,1750253453489,-195.395236,0.000165,2]
[366433106,1750253453499,-151.0,0.000165,2]
[366433107,1750253453509,-151.0,0.000165,2]
[366433108,1750253453521,-151.0,0.000165,2]
[366433109,1750253453530,-2338.31327949,0.00016508,2]
[366433110,1750253453541,-204.28894633,0.00016512,2]
[366433111,1750253453550,-150.0,0.0001652,2]
[366433112,1750253453559,-500.0,0.0001652,2]
[366433113,1750253453569,-212.72468752,0.0001652,2]
[366433114,1750253453579,-150.0,0.00016548,2]
[366433115,1750253453589,-500.0,0.00016548,2]
[366433116,1750253453599,-358.55,0.00016548,2]
[366433117,1750253453609,-5552.25177284,0.00016552,2]
[366433118,1750253453619,-1534.8868716,0.00016567,2]
[366433119,1750253453628,-2338.31327949,0.00016569,2]
[366433120,1750253453638,-501.64356992,0.0001657,2]
[366433121,1750253453647,-168.0,0.00016572,2]
[366433122,1750253453657,-500.34831717,0.00016573,2]
[366433123,1750253453667,-500.0,0.00016573,2]
[366433124,1750253453676,-500.0,0.00016573,2]
[366433125,1750253453686,-151.0,0.00016573,2]
[366433126,1750253453695,-151.0,0.00016573,2]
[366433127,1750253453704,-250.0,0.00016575,2]
[366433128,1750253453714,-500.0,0.00016575,2]
[366433129,1750253453723,-1799.7688585,0.00016591,2]
[366433130,1750253453733,-31403.9162325,0.00016591,2]
[366433131,1750253453742,-4563.6053339,0.00016591,2]
[366433132,1750253453752,-228.6397115,0.00016591,2]
[366433133,1750253453761,-151.0,0.00016591,2]
[366433134,1750253453773,-195.72793,0.00016591,2]
[366433135,1750253453782,-151.0,0.00016591,2]
[366433136,1750253453792,-195.72793,0.00016591,2]
[366433137,1750253453802,-1430.107054,0.00016591,2]
[366433138,1750253453812,-1430.107054,0.00016591,2]
[366433139,1750253453822,-151.0,0.00016591,2]
[366433140,1750253453833,-151.0,0.00016591,2]
[366433141,1750253453843,-300.0,0.00016599,2]
[366433142,1750253453853,-300.0,0.00016599,2]
[366433143,1750253453864,-300.0,0.00016599,2]
[366433144,1750253453874,-300.0,0.00016599,2]
[366433145,1750253453884,-690.17,0.00016599,2]
[366433146,1750253453894,-690.17,0.00016599,2]
[366433147,1750253453903,-690.17,0.00016599,2]
[366433148,1750253453913,-690.17,0.00016599,2]
[366433149,1750253453923,-300.0,0.00016599,2]
[366433150,1750253453933,-181.04,0.00016599,2]
[366433151,1750253453942,-838.69,0.00016599,2]
[366433152,1750253453952,-838.69,0.00016599,2]
[366433153,1750253453961,-838.69,0.00016599,2]
[366433155,1750253453970,-838.69,0.00016599,2]
[366433157,1750253453979,-500.0,0.00016599,2]
[366433158,1750253453990,-500.0,0.00016599,2]
[366433159,1750253453999,-500.0,0.00016599,2]
[366433160,1750253454008,-500.0,0.00016599,2]
[366433161,1750253454019,-500.0,0.00016599,2]
[366433162,1750253454029,-300.0,0.00016599,2]
[366433163,1750253454039,-500.0,0.00016599,2]
[366433164,1750253454048,-500.0,0.00016599,2]
[366433165,1750253454058,-528.17280761,0.00016599,2]
[366433166,1750253454068,-300.0,0.00016599,2]
[366433167,1750253454079,-4036.88,0.00016599,2]
[366433168,1750253454088,-4036.88,0.00016599,2]
[366433169,1750253454098,-4036.88,0.00016599,2]
[366433170,1750253454108,-4036.88,0.00016599,2]
[366433171,1750253454116,-4036.88,0.00016599,2]
[366433172,1750253454126,-627.44,0.00016599,2]
[366433173,1750253454135,-627.44,0.00016599,2]
[366433174,1750253454146,-627.44,0.00016599,2]
[366433175,1750253454156,-627.44,0.00016599,2]
[366433176,1750253454166,-627.44,0.00016599,2]
[366433177,1750253454176,-267.08094247,0.000166,2]
[366433178,1750253454186,-46953.23221663,0.000166,2]
[366433179,1750253454196,-603.37,0.000166,2]
[366433180,1750253454206,-3000.0,0.000166,2]
[366433181,1750253454216,-2401.01,0.000166,2]
[366433182,1750253454226,-2999.99,0.000166,2]
[366433183,1750253454235,-3000.0,0.000166,2]
[366433184,1750253454245,-1717.12,0.000166,2]
[366433185,1750253454255,-18939.65751061,0.000166,3]
[366433186,1750253454266,-574190.48474052,0.000166,2]
[366433187,1750253454847,-2039.30178093,0.000166,2]
[366433188,1750253454860,-250.378128,0.000166,2]
[366433189,1750253454887,-151.0,0.00016438,2]
[366433190,1750253454898,-14955.83362011,0.000166,2]
[366433191,1750253454910,-3019.96756858,0.000166,2]
[366433192,1750253454923,-4200.04995,0.000166,2]
[366433193,1750253454947,-720.0899999,0.000166,2]
[366433194,1750253454958,-300.9646024,0.000166,2]
[366433195,1750253454972,-343.893,0.000166,2]
[366433196,1750253454984,-800.3323698,0.000166,2]
[366433197,1750253455759,-151.0,0.00016438,2]
[366433198,1750253455773,-490.0,0.00016438,2]
[366433199,1750253455783,-490.0,0.00016438,2]
[366433200,1750253455792,-530.1079447,0.000166,2]
[366433201,1750253455804,-11327.75860644,0.000166,2]
[366433202,1750253455815,-712.682,0.000166,2]
[366433203,1750253455826,-1704.76,0.000166,2]
[366433204,1750253455837,-18523.19903387,0.000166,2]
[366433205,1750253455848,-3521.5770236,0.000166,2]
[366433206,1750253455859,-537.52709672,0.000166,2]
[366433207,1750253455870,-30576.29283951,0.000166,2]
[366433208,1750253455931,-500.0,0.00016438,2]
[366433209,1750253455941,-246362.00179239,0.000166,2]
[366433210,1750253456006,-85382.79790253,0.000166,2]
[366433211,1750253456018,-955.74,0.000166,2]
[366433212,1750253456028,-213.0,0.000166,4]
[366433213,1750253456038,-151.0,0.000166,2]
[366433214,1750253456047,-273.413564,0.000166,2]
[366433215,1750253456057,-151.0,0.000166,2]
[366433216,1750253456067,-151.0,0.000166,2]
[366433217,1750253456076,-293.075202,0.000166,2]
[366433218,1750253456086,-151.0,0.000166,2]
[366433219,1750253456096,-195.72793,0.000166,2]
[366433220,1750253456105,-248.890196,0.000166,2]
[366433221,1750253456115,-195.72793,0.000166,2]
[366433222,1750253456125,-172.510328,0.000166,2]
[366433223,1750253456135,-151.0,0.000166,2]
[366433224,1750253456144,-151.0,0.000166,2]
[366433225,1750253456154,-151.0,0.000166,2]
[366433226,1750253456164,-151.0,0.000166,2]
[366433227,1750253456174,-151.0,0.000166,2]
[366433228,1750253456184,-151.0,0.000166,2]
[366433229,1750253456194,-151.0,0.000166,2]
[366433230,1750253456203,-151.0,0.000166,2]
[366433231,1750253456213,-1430.107054,0.000166,2]
[366433232,1750253456223,-1430.107054,0.000166,2]
[366433233,1750253456233,-151.0,0.000166,2]
[366433234,1750253456242,-151.0,0.000166,2]
[366433235,1750253456252,-151.0,0.000166,2]
[366433236,1750253456262,-833.92080167,0.000166,3]
[366433237,1750253456274,-151.0,0.000166,2]
[366433238,1750253456284,-151.0,0.000166,2]
[366433239,1750253456295,-838.69,0.00016601,2]
[366433240,1750253456305,-838.69,0.00016601,2]
[366433241,1750253456316,-838.69,0.00016601,2]
[366433242,1750253456326,-838.69,0.00016601,2]
[366433243,1750253456335,-500.0,0.00016601,2]
[366433244,1750253456345,-500.0,0.00016601,2]
[366433245,1750253456355,-500.0,0.00016601,2]
[366433246,1750253456368,-500.0,0.00016601,2]
[366433247,1750253456381,-4036.88,0.00016601,2]
[366433248,1750253456391,-4036.88,0.00016601,2]
[366433249,1750253456401,-4036.88,0.00016601,2]
[366433250,1750253456412,-4036.88,0.00016601,2]
[366433251,1750253456422,-627.44,0.00016601,2]
[366433252,1750253456431,-627.44,0.00016601,2]
[366433253,1750253456441,-627.44,0.00016601,2]
[366433254,1750253456450,-627.44,0.00016601,2]
[366433255,1750253456460,-300.0,0.00016601,2]
[366433256,1750253456470,-300.0,0.00016601,2]
[366433257,1750253456479,-300.0,0.00016601,2]
[366433258,1750253456489,-300.0,0.00016601,2]
[366433259,1750253456498,-155.02,0.00016602,2]
[366433260,1750253456508,-155.02294452,0.00016602,2]
[366433261,1750253456519,-2958.25,0.00016602,2]
[366433262,1750253456529,-2958.25,0.00016602,2]
[366433263,1750253456539,-2958.25,0.00016602,2]
[366433264,1750253456548,-2958.25,0.00016602,2]
[366433265,1750253456558,-2958.25,0.00016602,2]
[366433266,1750253456567,-2958.25,0.00016602,2]
[366433267,1750253456577,-2958.25,0.00016602,2]
[366433268,1750253456586,-2958.25,0.00016602,2]
[366433269,1750253456596,-2958.25,0.00016602,2]
[366433270,1750253456606,-2958.25,0.00016602,2]
[366433271,1750253456616,-2958.25,0.00016602,2]
[366433272,1750253456626,-2958.25,0.00016602,2]
[366433273,1750253456636,-2958.25,0.00016602,2]
[366433274,1750253456645,-2958.25,0.00016602,2]
[366433275,1750253456656,-2958.25,0.00016602,2]
[366433276,1750253456666,-2958.25,0.00016602,2]
[366433277,1750253456676,-2958.25,0.00016602,2]
[366433278,1750253456685,-2958.25,0.00016602,2]
[366433279,1750253456695,-2958.25,0.00016602,2]
[366433280,1750253456705,-2958.34301761,0.00016602,2]
[366433281,1750253456714,-4161.111151,0.00016602,2]
[366433282,1750253456724,-490.52395401,0.00016602,2]
[366433283,1750253456733,-2268.652289,0.00016602,2]
[366433284,1750253456741,-490.0,0.00016602,2]
[366433285,1750253456750,-432.79503237,0.00016602,2]
[366433286,1750253456759,-151.0,0.00016602,2]
[366433287,1750253456771,-151.0,0.00016602,2]
[366433288,1750253456779,-151.0,0.00016602,2]
[366433289,1750253456788,-239.673524,0.00016602,2]
[366433290,1750253456798,-519.5,0.00016602,2]
[366433291,1750253456808,-582.26,0.00016602,2]
[366433292,1750253456818,-490.0,0.00016602,2]
[366433293,1750253456826,-592.06,0.00016602,2]
[366433294,1750253456835,-490.0,0.00016602,2]
[366433295,1750253456843,-490.0,0.00016602,2]
[366433296,1750253456851,-490.0,0.00016602,2]
[366433297,1750253456859,-552.28,0.00016602,2]
[366433298,1750253456868,-544.76,0.00016602,2]
[366433299,1750253456877,-490.0,0.00016602,2]
[366433300,1750253456885,-720.55,0.00016602,2]
[366433301,1750253456893,-490.0,0.00016602,2]
[366433302,1750253456902,-515.37,0.00016602,2]
[366433303,1750253456910,-490.0,0.00016602,2]
[366433304,1750253456919,-302.07,0.00016602,2]
[366433305,1750253456928,-490.0,0.00016602,2]
[366433306,1750253456936,-840.21,0.00016602,2]
[366433307,1750253456945,-647.72,0.00016602,2]
[366433308,1750253456953,-545.93,0.00016602,2]
[366433309,1750253456964,-550.33,0.00016602,2]
[366433310,1750253456978,-683.47,0.00016602,2]
[366433311,1750253456988,-490.0,0.00016602,2]
[366433312,1750253456996,-490.0,0.00016602,2]
[366433313,1750253457005,-401.50069127,0.00016602,2]
[366433314,1750253457015,-490.0,0.00016602,2]
[366433315,1750253457027,-490.0,0.00016602,2]
[366433316,1750253457037,-490.0,0.00016602,2]
[366433317,1750253457047,-490.0,0.00016602,2]
[366433318,1750253457057,-300.0,0.00016602,2]
[366433319,1750253457067,-490.0,0.00016602,2]
[366433320,1750253457078,-490.0,0.00016602,2]
[366433321,1750253457088,-490.0,0.00016602,2]
[366433322,1750253457098,-589.21,0.00016602,2]
[366433323,1750253457108,-780.0,0.00016602,2]
[366433324,1750253457118,-490.0,0.00016602,2]
[366433325,1750253457127,-490.0,0.00016602,2]
[366433326,1750253457137,-490.0,0.00016602,2]
[366433327,1750253457146,-490.0,0.00016602,2]
[366433328,1750253457155,-490.0,0.00016602,2]
[366433329,1750253457165,-490.0,0.00016602,2]
[366433330,1750253457175,-1371.51,0.00016602,2]
[366433331,1750253457184,-490.0,0.00016602,2]
[366433332,1750253457194,-606.24,0.00016602,2]
[366433333,1750253457204,-490.0,0.00016602,2]
[366433334,1750253457214,-490.0,0.00016602,2]
[366433335,1750253457224,-490.0,0.00016602,2]
[366433336,1750253457234,-799.92,0.00016602,2]
[366433337,1750253457244,-490.0,0.00016602,2]
[366433338,1750253457253,-490.0,0.00016602,2]
[366433339,1750253457264,-490.0,0.00016602,2]
[366433340,1750253457282,-490.0,0.00016602,2]
[366433341,1750253457292,-490.0,0.00016602,2]
[366433342,1750253457302,-490.0,0.00016602,2]
[366433343,1750253457312,-490.0,0.00016602,2]
[366433344,1750253457322,-490.0,0.00016602,2]
[366433345,1750253457332,-598.39,0.00016602,2]
[366433346,1750253457342,-490.0,0.00016602,2]
[366433347,1750253457351,-490.0,0.00016602,2]
[366433348,1750253457361,-490.0,0.00016602,2]
[366433349,1750253457372,-490.0,0.00016602,2]
[366433350,1750253457381,-681.09,0.00016602,2]
[366433351,1750253457391,-490.0,0.00016602,2]
[366433352,1750253457400,-490.0,0.00016602,2]
[366433353,1750253457410,-490.0,0.00016602,2]
[366433354,1750253457419,-490.0,0.00016602,2]
[366433355,1750253457428,-490.0,0.00016602,2]
[366433356,1750253457438,-490.0,0.00016602,2]
[366433357,1750253457447,-535.56,0.00016602,2]
[366433358,1750253457457,-490.0,0.00016602,2]
[366433359,1750253457467,-490.0,0.00016602,2]
[366433360,1750253457477,-512.42,0.00016602,2]
[366433361,1750253457486,-613.07,0.00016602,2]
[366433362,1750253457496,-490.0,0.00016602,2]
[366433363,1750253457506,-490.0,0.00016602,2]
[366433364,1750253457516,-490.0,0.00016602,2]
[366433365,1750253457526,-490.0,0.00016602,2]
[366433366,1750253457536,-490.0,0.00016602,2]
[366433367,1750253457546,-490.0,0.00016602,2]
[366433368,1750253457555,-490.0,0.00016602,2]
[366433369,1750253457565,-490.0,0.00016602,2]
[366433370,1750253457574,-490.0,0.00016602,2]
[366433371,1750253457584,-490.0,0.00016602,2]
[366433372,1750253457594,-490.0,0.00016602,2]
[366433373,1750253457603,-929.58,0.00016602,2]
[366433374,1750253457613,-490.0,0.00016602,2]
[366433375,1750253457623,-490.0,0.00016602,2]
[366433376,1750253457633,-490.0,0.00016602,2]
[366433377,1750253457642,-490.0,0.00016602,2]
[366433378,1750253457654,-699.66,0.00016602,2]
[366433379,1750253457664,-371.01754626,0.00016602,2]
[366433380,1750253457684,-224.95245374,0.00016602,2]
[366433381,1750253457693,-490.0,0.00016602,2]
[366433382,1750253457703,-490.0,0.00016602,2]
[366433383,1750253457715,-490.0,0.00016602,2]
[366433384,1750253457723,-490.0,0.00016602,2]
[366433385,1750253457732,-490.0,0.00016602,2]
[366433386,1750253457740,-687.93,0.00016602,2]
[366433387,1750253457749,-663.06,0.00016602,2]
[366433388,1750253457757,-490.0,0.00016602,2]
[366433389,1750253457765,-490.0,0.00016602,2]
[366433390,1750253457775,-490.0,0.00016602,2]
[366433391,1750253457784,-555.54,0.00016602,2]
[366433392,1750253457793,-490.0,0.00016602,2]
[366433393,1750253457802,-585.44,0.00016602,2]
[366433394,1750253457812,-1288.68,0.00016602,2]
[366433395,1750253457822,-490.0,0.00016602,2]
[366433396,1750253457831,-491.46,0.00016602,2]
[366433397,1750253457841,-490.0,0.00016602,2]
[366433398,1750253457850,-490.0,0.00016602,2]
[366433399,1750253457858,-490.0,0.00016602,2]
[366433400,1750253457867,-1296.49,0.00016602,2]
[366433401,1750253457875,-583.84,0.00016602,2]
[366433402,1750253457884,-594.08,0.00016602,2]
[366433403,1750253457893,-490.0,0.00016602,2]
[366433404,1750253457902,-490.0,0.00016602,2]
[366433405,1750253457911,-490.0,0.00016602,2]
[366433406,1750253457920,-490.0,0.00016602,2]
[366433407,1750253457929,-490.0,0.00016602,2]
[366433408,1750253457939,-537.69,0.00016602,2]
[366433409,1750253457949,-490.0,0.00016602,2]
[366433410,1750253457958,-490.0,0.00016602,2]
[366433411,1750253457967,-555.39,0.00016602,2]
[366433412,1750253457977,-490.0,0.00016602,2]
[366433413,1750253457987,-799.83,0.00016602,2]
[366433414,1750253457997,-579.99,0.00016602,2]
[366433415,1750253458006,-579.42,0.00016602,2]
[366433416,1750253458016,-490.0,0.00016602,2]
[366433417,1750253458027,-490.0,0.00016602,2]
[366433418,1750253458037,-490.0,0.00016602,2]
[366433419,1750253458047,-1238.91,0.00016602,2]
[366433420,1750253458057,-713.58,0.00016602,2]
[366433421,1750253458067,-1327.48,0.00016602,2]
[366433422,1750253458077,-1904.58,0.00016602,2]
[366433423,1750253458087,-1667.29,0.00016602,2]
[366433424,1750253458096,-552.19,0.00016602,2]
[366433425,1750253458106,-490.0,0.00016602,2]
[366433426,1750253458116,-490.0,0.00016602,2]
[366433427,1750253458125,-744.63,0.00016602,2]
[366433428,1750253458133,-490.0,0.00016602,2]
[366433429,1750253458143,-490.0,0.00016602,2]
[366433430,1750253458152,-1076.1,0.00016602,2]
[366433431,1750253458162,-490.0,0.00016602,2]
[366433432,1750253458171,-537.58705076,0.00016602,2]
[366433433,1750253458180,-709.57,0.00016602,2]
[366433434,1750253458189,-843.94,0.00016602,2]
[366433435,1750253458198,-490.0,0.00016602,2]
[366433436,1750253458207,-490.0,0.00016602,2]
[366433437,1750253458216,-490.0,0.00016602,2]
[366433438,1750253458226,-1201.39,0.00016602,2]
[366433439,1750253458236,-574.33,0.00016602,2]
[366433440,1750253458245,-490.0,0.00016602,2]
[366433441,1750253458254,-490.0,0.00016602,2]
[366433442,1750253458262,-685.0,0.00016602,2]
[366433443,1750253458281,-490.0,0.00016602,2]
[366433444,1750253458291,-853.83,0.00016602,2]
[366433445,1750253458301,-516.18,0.00016602,2]
[366433446,1750253458311,-493.21,0.00016602,2]
[366433447,1750253458320,-490.0,0.00016602,2]
[366433448,1750253458330,-490.0,0.00016602,2]
[366433449,1750253458339,-490.0,0.00016602,2]
[366433450,1750253458349,-664.42,0.00016602,2]
[366433451,1750253458359,-569.09,0.00016602,2]
[366433452,1750253458369,-618.02,0.00016602,2]
[366433453,1750253458378,-813.56,0.00016602,2]
[366433454,1750253458388,-1592.12,0.00016602,2]
[366433455,1750253458398,-490.0,0.00016602,2]
[366433456,1750253458407,-844.15,0.00016602,2]
[366433457,1750253458416,-514.23,0.00016602,2]
[366433458,1750253458425,-490.0,0.00016602,2]
[366433459,1750253458435,-632.23,0.00016602,2]
[366433460,1750253458445,-715.24,0.00016602,2]
[366433461,1750253458454,-558.73,0.00016602,2]
[366433462,1750253458466,-621.02,0.00016602,2]
[366433463,1750253458475,-718.38,0.00016602,2]
[366433464,1750253458485,-753.05,0.00016602,2]
[366433465,1750253458494,-490.0,0.00016602,2]
[366433466,1750253458503,-685.88,0.00016602,2]
[366433467,1750253458512,-490.0,0.00016602,2]
[366433468,1750253458523,-490.0,0.00016602,2]
[366433469,1750253458532,-490.0,0.00016602,2]
[366433470,1750253458542,-1183.75,0.00016602,2]
[366433471,1750253458552,-506.38,0.00016602,2]
[366433472,1750253458562,-845.87,0.00016602,2]
[366433473,1750253458572,-545.78,0.00016602,2]
[366433474,1750253458581,-645.82,0.00016602,2]
[366433475,1750253458591,-658.82,0.00016602,2]
[366433476,1750253458601,-490.0,0.00016602,2]
[366433477,1750253458612,-396.05,0.00016602,2]
[366433478,1750253458622,-490.0,0.00016602,2]
[366433479,1750253458631,-757.54,0.00016602,2]
[366433480,1750253458640,-1311.6,0.00016602,2]
[366433481,1750253458650,-490.0,0.00016602,2]
[366433482,1750253458660,-563.14,0.00016602,2]
[366433483,1750253458670,-490.0,0.00016602,2]
[366433484,1750253458680,-490.0,0.00016602,2]
[366433485,1750253458689,-1039.28,0.00016602,2]
[366433486,1750253458699,-490.0,0.00016602,2]
[366433487,1750253458709,-490.0,0.00016602,2]
[366433488,1750253458718,-490.0,0.00016602,2]
[366433489,1750253458727,-490.0,0.00016602,2]
[366433490,1750253458737,-490.0,0.00016602,2]
[366433491,1750253458746,-490.0,0.00016602,2]
[366433492,1750253458756,-537.93,0.00016602,2]
[366433493,1750253458765,-817.8,0.00016602,2]
[366433494,1750253458775,-594.52,0.00016602,2]
[366433495,1750253458785,-1507.84,0.00016602,2]
[366433496,1750253458794,-514.59,0.00016602,2]
[366433497,1750253458804,-670.08,0.00016602,2]
[366433498,1750253458814,-507.03,0.00016602,2]
[366433499,1750253458824,-490.0,0.00016602,2]
[366433500,1750253458833,-1188.33,0.00016602,2]
[366433501,1750253458842,-1336.54,0.00016602,2]
[366433502,1750253458852,-612.27,0.00016602,2]
[366433503,1750253458862,-1297.47,0.00016602,2]
[366433504,1750253458872,-2132.44,0.00016602,2]
[366433505,1750253458882,-743.68,0.00016602,2]
[366433506,1750253458891,-490.0,0.00016602,2]
[366433507,1750253458900,-490.0,0.00016602,2]
[366433508,1750253458909,-490.0,0.00016602,2]
[366433509,1750253458919,-934.64,0.00016602,2]
[366433510,1750253458929,-1429.23,0.00016602,2]
[366433511,1750253458939,-491.58787408,0.00016602,2]
[366433512,1750253458948,-652.13,0.00016602,2]
[366433513,1750253458958,-490.0,0.00016602,2]
[366433514,1750253458967,-166.85471057,0.00016602,2]